bitfinex/quotes_ETHUSD_20230702
["timestamp","ask_amount","ask_price","bid_price","bid_amount"]
[1688311873915,1.081,1913.6,1912.6,2.68752184]
[1688311874209,5.22752,1913.0,1912.8,5.2279]
[1688311874426,5.2273,1913.1,1912.8,10.45583]
[1688311874586,5.2274,1913.0,1912.8,5.2279]
[1688311874765,5.2274,1913.0,1912.7,5.22812]
[1688311874960,10.4548,1913.0,1912.7,10.45633]
[1688311875209,5.2274,1913.0,1912.7,13.14385184]
[1688311875591,5.22722,1913.1,1912.7,15.75795184]
[1688311875592,10.45451,1913.1,1912.7,15.75795184]
[1688311875999,13.06806,1913.1,1912.7,13.14385184]
[1688311876878,13.06806,1913.1,1912.7,7.91564184]
[1688311877321,13.82476916,1913.1,1912.4,5.22877]
[1688311877483,0.04278506,1913.0,1912.3,5.22918]
[1688311877677,0.04278506,1913.0,1912.3,2.68752184]
[1688311877923,13.0699,1912.8,1912.3,5.22914]
[1688311878218,0.04278506,1912.7,1912.3,10.45844]
[1688311878517,5.22823,1912.7,1912.3,15.76061184]
[1688311879517,10.45646,1912.7,1912.3,15.76061184]
[1688311879715,0.018895,1912.6,1912.2,5.24590317]
[1688311879916,13.072,1912.5,1912.2,5.22952]
[1688311880122,10.45762,1912.5,1912.2,10.45909]
[1688311880419,10.45724,1912.6,1912.2,10.45909]
[1688311880590,2.614,1912.8,1912.2,13.07387]
[1688311880591,10.45684,1912.7,1912.2,13.07387]
[1688311880913,5.22859,1912.6,1912.2,13.07387]
[1688311881118,10.45718,1912.6,1912.2,13.07387]
[1688311882822,5.22859,1912.6,1912.2,13.07387]
[1688311883390,10.45718,1912.6,1912.2,13.07387]
[1688311883904,10.45718,1912.6,1912.2,10.45909]
[1688311885234,13.07142,1912.6,1912.2,10.45909]
[1688311886096,13.07142,1912.6,1912.2,13.06639]
[1688311886453,5.22859,1912.6,1912.2,15.68117]
[1688311886906,10.45707,1912.6,1912.2,13.06639]
[1688311893133,13.07131,1912.6,1912.2,7.83682]
[1688311893636,13.07131,1912.6,1912.2,2.6073]
[1688311894039,13.07131,1912.6,1912.2,7.83686]
[1688311894976,14.378441,1912.6,1912.2,2.6073]
[1688311895264,14.39561967,1912.6,1912.2,2.6073]
[1688311895411,14.378441,1912.6,1912.2,2.6073]
[1688311896547,15.68708,1912.4,1912.2,2.6073]
[1688311897116,20.91611,1912.4,1912.2,2.6073]
[1688311897309,15.164861,1912.3,1912.2,2.6073]
[1688311897742,15.930861,1912.3,1912.2,2.6073]
[1688311897919,13.83925,1912.3,1912.2,2.6073]
[1688311898120,13.07325,1912.3,1912.2,2.6073]
[1688311898536,21.98677184,1912.3,1912.1,0.1]
[1688311898721,22.5102269,1912.2,1912.1,0.1]
[1688311898922,17.0502269,1912.2,1912.1,0.1]
[1688311899153,16.42212275,1912.2,1912.1,0.1]
[1688311899351,15.65612275,1912.2,1912.1,0.1]
[1688311901538,16.42212275,1912.2,1912.1,0.1]
[1688311901867,16.41712275,1912.2,1912.1,0.1]
[1688311903063,24.56464459,1912.2,1912.1,0.1]
[1688311903262,25.04464459,1912.2,1912.1,0.1]
[1688311905576,25.80764459,1912.2,1912.1,0.1]
[1688311906372,25.80764459,1912.2,1911.9,0.1]
[1688311906528,6.226,1912.0,1911.9,0.1]
[1688311906755,40.77425184,1912.0,1911.6,0.1483]
[1688311907005,0.76,1911.7,1911.6,0.1483]
[1688311907177,30.31128184,1911.7,1911.6,0.1483]
[1688311907996,33.31128184,1911.7,1911.6,0.1483]
[1688311908149,37.73856002,1911.7,1911.6,0.1483]
[1688311908358,37.73856002,1911.7,1911.3,0.1]
[1688311908584,20.92704,1911.4,1911.3,0.1]
[1688311908782,24.09456184,1911.4,1911.3,0.1]
[1688311908963,29.55456184,1911.4,1911.3,0.1]
[1688311909165,34.37136202,1911.4,1911.3,0.1]
[1688311909571,0.5,1911.3,1911.2,0.1]
[1688311909788,25.97362184,1911.3,1911.2,0.1]
[1688311909989,0.04278506,1911.2,1910.6,0.1]
[1688311910206,15.69896,1911.0,1910.6,0.1]
[1688311910384,13.08247,1911.0,1910.6,0.1]
[1688311911169,13.08247,1911.0,1910.6,5.33392]
[1688311911509,15.76999184,1911.0,1910.6,0.1]
[1688311911671,16.53599184,1911.0,1910.6,0.1]
[1688311911877,19.52048402,1911.0,1910.6,0.1]
[1688311912464,0.76,1910.9,1910.6,0.1]
[1688311912705,15.70022,1910.8,1910.6,0.1]
[1688311912863,13.8502,1910.7,1910.6,0.1]
[1688311914195,21.99772184,1910.7,1910.6,0.1]
[1688311914364,25.46250502,1910.7,1910.6,0.1]
[1688311914566,16.83498318,1910.7,1910.6,0.1]
[1688311914823,19.52250502,1910.7,1910.6,0.1]
[1688311915118,20.00250502,1910.7,1910.6,0.1]
[1688311915360,13.0842,1910.7,1910.6,0.1]
[1688311915615,5.23303,1911.0,1910.6,11.3339]
[1688311915831,10.46606,1911.0,1910.6,5.33395]
[1688311915968,5.23271,1911.1,1910.6,15.87239184]
[1688311916169,5.23271,1911.1,1910.8,5.23335]
[1688311916370,5.2322,1911.3,1910.8,13.15428184]
[1688311916573,5.23191,1911.4,1911.0,0.76]
[1688311916773,10.46382,1911.4,1911.0,6.00921355]
[1688311917084,10.46382,1911.4,1911.0,11.24207355]
[1688311917085,5.23191,1911.4,1911.0,11.24207355]
[1688311917291,2.61553,1911.7,1911.0,11.24207355]
[1688311917292,10.4628,1911.6,1911.2,0.766]
[1688311917910,13.0784,1911.6,1911.2,5.99818]
[1688311918591,13.0784,1911.6,1911.2,11.23049]
[1688311919571,13.0784,1911.6,1911.2,10.46449]
[1688311920026,14.38624,1911.6,1911.2,10.46449]
[1688311920319,0.02367719,1911.5,1910.9,5.2331]
[1688311920493,13.07994,1911.4,1910.9,5.2331]
[1688311921102,13.07994,1911.4,1910.9,10.46623]
[1688311921103,0.02053321,1911.3,1910.9,10.46623]
[1688311921309,5.23236,1911.2,1910.9,10.46623]
[1688311921604,10.46472,1911.2,1910.9,10.46623]
[1688311922612,5.23131,1911.6,1911.0,3.78352184]
[1688311922903,5.23131,1911.6,1911.2,13.08055]
[1688311922904,10.46269,1911.6,1911.2,13.08055]
[1688311923108,5.23131,1911.6,1911.2,13.08055]
[1688311923310,13.07829,1911.6,1911.2,5.2322]
[1688311923607,14.386119,1911.6,1911.0,1.096]
[1688311923807,22.53364084,1911.6,1910.8,1.096]
[1688311924006,0.04278506,1911.5,1910.9,5.23313]
[1688311924179,13.07995,1911.4,1910.9,10.46626]
[1688311924690,5.2321,1911.3,1910.9,13.08282]
[1688311924874,5.2321,1911.3,1911.0,0.01655355]
[1688311925081,5.2321,1911.3,1911.1,5.23258]
[1688311925278,5.2321,1911.3,1911.1,10.46516]
[1688311926081,5.2321,1911.3,1911.1,5.23258]
[1688311926284,10.4642,1911.3,1911.1,5.23258]
[1688311926524,10.4642,1911.3,1911.0,10.48195355]
[1688311927100,5.2321,1911.3,1911.0,10.48195355]
[1688311928121,10.46414,1911.3,1911.0,10.48195355]
[1688311928422,10.46381,1911.4,1911.0,13.09838355]
[1688311928730,0.42411112,1911.8,1911.4,6.9296261]
[1688311928929,0.5,1912.8,1911.7,8.69290376]
[1688311928930,5.2286,1912.6,1911.7,8.69290376]
[1688311929231,5.22859,1912.6,1912.0,13.0751]
[1688311929525,5.22859,1912.6,1912.2,10.45888]
[1688311929730,2.61396,1912.9,1912.2,10.45888]
[1688311929731,5.22776,1912.9,1912.3,0.02872017]
[1688311930032,5.22771,1912.9,1912.6,0.02872017]
[1688311930222,13.06925,1912.9,1912.6,0.02872017]
[1688311930395,13.06925,1912.9,1912.5,0.02872017]
[1688311930598,5.22749,1913.0,1912.6,5.22848]
[1688311930832,5.64730979,1913.1,1912.6,15.75872184]
[1688311931125,0.7923224,1913.9,1912.8,13.0697]
[1688311931330,5.22587,1913.6,1913.1,10.45403]
[1688311931514,13.848562,1913.6,1913.1,5.227]
[1688311931685,13.848562,1913.6,1912.9,3.70982]
[1688311931686,15.75222184,1913.6,1912.9,6.32353]
[1688311931894,5.22587,1913.6,1913.1,6.3231]
[1688311932085,5.22566,1913.7,1913.1,6.3231]
[1688311932086,5.22565,1913.7,1913.1,11.55021]
[1688311932335,5.22565,1913.7,1913.1,14.16376]
[1688311932336,10.45125,1913.7,1913.1,14.16376]
[1688311932490,10.4507,1913.8,1913.3,10.45297]
[1688311932693,10.4507,1913.8,1913.3,5.2264]
[1688311932694,11.81277285,1913.8,1913.3,5.2264]
[1688311932921,6.58735285,1913.8,1913.3,6.3164]
[1688311933139,5.65133381,1913.9,1913.3,14.15625]
[1688311933437,5.65133381,1913.9,1913.6,10.45118]
[1688311933438,5.22501,1913.9,1913.6,10.45118]
[1688311933644,8.07185,1914.4,1913.6,10.45118]
[1688311933789,5.2245,1914.1,1913.6,13.06405]
[1688311933986,0.42119811,1914.4,1913.8,1.085]
[1688311934230,0.12972429,1914.7,1914.0,1.096]
[1688311934396,5.22303,1914.6,1914.4,5.22343]
[1688311934602,5.22277,1914.7,1914.4,5.23995416]
[1688311934797,5.22277,1914.7,1914.4,10.46351416]
[1688311935006,5.22208,1915.0,1914.4,14.16229416]
[1688311935205,5.22201,1915.0,1914.6,5.2228]
[1688311935432,1.08699687,1915.0,1914.6,10.46234244]
[1688311935634,11.53099687,1915.0,1914.6,10.46234244]
[1688311935798,11.53099687,1915.0,1914.6,5.23932244]
[1688311936133,11.53099687,1915.0,1914.6,0.01652244]
[1688311936981,10.444,1915.0,1914.6,5.23947244]
[1688311937342,5.222,1915.0,1914.6,5.23947244]
[1688311938226,5.172,1915.0,1914.6,5.23947244]
[1688311938407,10.39393,1915.0,1914.6,5.23947244]
[1688311938793,5.172,1915.0,1914.6,5.23947244]
[1688311939107,10.39393,1915.0,1914.6,5.23947244]
[1688311939323,14.30537,1915.0,1914.6,0.01652244]
[1688311940034,13.05692,1914.7,1914.0,9.32061]
[1688311940254,13.05692,1914.7,1913.6,5.06582]
[1688311940255,15.74444184,1914.7,1913.9,5.22482]
[1688311940410,0.02337933,1914.6,1913.8,8.22518]
[1688311940613,13.05917,1914.4,1913.8,13.45038]
[1688311941014,0.02337933,1914.3,1913.8,14.54638]
[1688311941335,0.02337933,1914.1,1913.9,2.68752184]
[1688311941549,5.22375,1914.4,1914.0,11.53732]
[1688311941847,10.44757,1914.4,1914.0,11.53732]
[1688311942538,5.22232,1914.9,1914.3,14.15534]
[1688311942830,10.44464,1914.9,1914.5,11.54234]
[1688311943243,10.44464,1914.9,1914.2,5.22399]
[1688311943244,16.972402,1914.9,1914.2,5.22399]
[1688311943413,16.972402,1914.9,1914.3,5.22381]
[1688311943609,14.361302,1914.9,1914.3,10.39765]
[1688311943813,13.05574,1914.9,1914.3,10.39765]
[1688311944009,10.44464,1914.9,1914.4,1.086]
[1688311944211,10.44464,1914.9,1914.4,6.32599416]
[1688311944623,10.44444,1914.9,1914.6,5.22292]
[1688311944800,0.41443683,1915.3,1914.6,16.84097184]
[1688311944970,0.0483082,1915.5,1914.9,14.15122]
[1688311944971,5.2688782,1915.5,1914.9,14.15122]
[1688311945158,0.0483082,1915.5,1915.0,2.68752184]
[1688311945353,0.0483082,1915.5,1915.2,1.09]
[1688311945681,0.0483082,1915.5,1915.3,5.22111]
[1688311946051,0.0483082,1915.5,1915.3,13.12974184]
[1688311946292,0.0483082,1915.5,1915.4,1.085]
[1688311946500,0.0483082,1915.5,1915.4,11.52668]
[1688311946793,5.2688682,1915.5,1915.2,6.31113]
[1688311947115,5.2688682,1915.5,1915.2,5.22113]
[1688311947386,14.14864502,1915.5,1914.9,6.31808]
[1688311947755,14.14864502,1915.5,1914.9,11.54028]
[1688311948157,14.14864502,1915.5,1914.9,1.096]
[1688311948373,14.38018595,1915.5,1914.8,0.0165207]
[1688311948594,13.05332,1915.3,1914.8,0.0165207]
[1688311948773,0.00523305,1915.2,1914.8,5.2389607]
[1688311948978,13.05447,1915.1,1914.7,1.096]
[1688311949204,0.00727577,1915.0,1914.5,11.53436]
[1688311949408,10.44468,1914.9,1914.5,6.31113]
[1688311949608,0.02076682,1914.8,1914.2,5.22402]
[1688311949809,0.02076682,1914.8,1914.4,5.22347]
[1688311949810,5.22288,1914.7,1914.4,5.22347]
[1688311949996,0.02076682,1914.8,1914.5,2.68752184]
[1688311950206,0.02076682,1914.8,1914.5,3.78352184]
[1688311950376,10.44416,1915.0,1914.6,10.44604]
[1688311950580,5.22102,1915.4,1914.7,3.77452184]
[1688311950778,5.22097,1915.4,1915.0,1.096]
[1688311950973,5.2690182,1915.5,1915.1,10.44317]
[1688311951315,0.0483082,1915.5,1915.1,15.75802996]
[1688311951474,0.0483082,1915.5,1915.2,1.096]
[1688311951897,0.0483082,1915.5,1915.3,10.44222]
[1688311953932,0.0483082,1915.5,1915.3,5.22111]
[1688311954229,0.0483082,1915.5,1914.8,1.045081]
[1688311954230,0.01249042,1915.4,1914.6,5.22295]
[1688311954544,0.01651778,1915.1,1914.7,5.22263]
[1688311954668,5.23821778,1915.1,1914.7,7.91015184]
[1688311954873,5.22126,1915.3,1914.7,13.13290184]
[1688311955131,1.47082586,1915.4,1914.7,15.74427184]
[1688311955326,10.4898282,1915.5,1914.8,8.46]
[1688311955493,10.4897382,1915.5,1915.0,5.22193]
[1688311955681,14.41000702,1915.5,1915.0,7.90945184]
[1688311955886,14.41000702,1915.5,1915.0,2.68752184]
[1688311956302,14.41000702,1915.5,1914.7,5.22263]
[1688311956619,14.41000702,1915.5,1914.8,13.13243184]
[1688311956620,5.221,1915.4,1914.8,13.13243184]
[1688311956791,10.442,1915.4,1914.8,15.74366184]
[1688311957115,0.0483082,1915.5,1914.8,21.20366184]
[1688311957320,0.0483082,1915.5,1915.0,10.44342]
[1688311957501,5.2688682,1915.5,1915.2,5.22133]
[1688311957700,0.0483082,1915.5,1915.2,5.22133]
[1688311958112,5.2689182,1915.5,1915.2,5.22133]
[1688311958315,10.4895282,1915.5,1915.2,5.22133]
[1688311959664,0.0483082,1915.5,1915.2,7.90885184]
[1688311959966,5.2688882,1915.5,1915.2,7.90881184]
[1688311960463,10.4894682,1915.5,1915.2,7.90881184]
[1688311961064,5.2688882,1915.5,1915.2,13.13019184]
[1688311961424,5.2688882,1915.5,1915.3,2.68752184]
[1688311961654,0.01496441,1915.4,1914.5,6.8622]
[1688311961820,13.0542,1915.1,1914.6,2.68752184]
[1688311962154,0.02337933,1915.0,1914.6,2.68752184]
[1688311962472,0.02337933,1914.8,1914.6,7.91054184]
[1688311962682,5.24588933,1914.8,1914.3,1.096]
[1688311962828,13.05625,1914.8,1914.4,7.91088184]
[1688311963021,0.02337933,1914.7,1914.1,3.0]
[1688311963368,0.02337933,1914.7,1914.0,5.22445]
[1688311963369,13.07435813,1914.6,1914.0,5.22445]
[1688311963648,13.09773746,1914.6,1914.0,5.22464]
[1688311964019,13.09773746,1914.6,1914.0,10.4493]
[1688311964588,13.09773746,1914.6,1913.5,1.088]
[1688311964868,13.05987,1914.3,1913.8,5.22514]
[1688311965079,13.05987,1914.3,1913.9,2.68752184]
[1688311965375,13.05987,1914.3,1913.9,5.22493]
[1688311965565,0.01651813,1914.5,1914.0,2.68752184]
[1688311965781,0.02337933,1914.7,1914.1,13.06062]
[1688311966085,5.2225,1914.8,1914.2,3.77752184]
[1688311966378,5.2225,1914.8,1914.3,13.05905]
[1688311966522,5.2225,1914.8,1914.4,2.68752184]
[1688311966718,10.44472,1914.9,1914.5,13.05812]
[1688311967232,5.22225,1914.9,1914.6,2.68752184]
[1688311967427,5.22225,1914.9,1914.7,5.2226]
[1688311967628,10.4445,1914.9,1914.7,7.91012184]
[1688311967830,10.4445,1914.9,1914.7,2.68752184]
[1688311968127,10.4445,1914.9,1914.5,5.22313]
[1688311968359,13.0556,1914.9,1914.5,2.68752184]
[1688311968562,13.68023616,1914.9,1914.5,2.68752184]
[1688311969262,13.69675429,1914.9,1914.4,5.22343]
[1688311969463,13.69675429,1914.9,1914.4,2.68752184]
[1688311969464,0.00586165,1914.8,1914.4,2.68752184]
[1688311969687,13.057,1914.7,1914.0,1.096]
[1688311969857,13.057,1914.7,1914.1,7.91173184]
[1688311970272,0.01755288,1914.6,1914.1,13.13611184]
[1688311970469,13.0585,1914.5,1914.1,2.68752184]
[1688311970678,13.0585,1914.5,1914.1,7.91182184]
[1688311970973,13.0585,1914.5,1914.1,7.91186184]
[1688311971597,0.01651813,1914.6,1914.1,2.68752184]
[1688311971889,10.44686,1914.5,1914.1,7.91186184]
[1688311972094,10.44686,1914.5,1914.1,2.68752184]
[1688311972873,10.44686,1914.5,1914.1,7.91189184]
[1688311973874,14.36599181,1914.5,1913.7,6.270999]
[1688311974175,14.36599181,1914.5,1913.0,0.5]
[1688311974176,1.096,1914.4,1913.1,1.7388]
[1688311974380,1.096,1914.4,1913.3,10.45305]
[1688311974381,15.67376,1914.1,1913.3,10.45305]
[1688311974698,0.02127982,1914.0,1913.4,2.63752184]
[1688311974896,13.06284,1913.9,1913.4,2.63752184]
[1688311975080,0.02127982,1913.8,1913.4,2.63752184]
[1688311975284,13.06422,1913.7,1913.2,5.22665]
[1688311975494,0.02127982,1913.6,1912.8,7.00437897]
[1688311975695,10.45263,1913.4,1912.9,7.91507184]
[1688311975935,10.45263,1913.4,1912.8,1.77660897]
[1688311976116,13.08704982,1913.4,1912.8,1.77660897]
[1688311976735,13.08704982,1913.4,1912.8,1.36242799]
[1688311976926,1.30870498,1913.3,1912.8,1.36242799]
[1688311977123,13.06745,1913.2,1912.6,5.22835]
[1688311977314,13.06745,1913.2,1912.7,13.14391184]
[1688311977718,13.06745,1913.2,1912.7,15.75801184]
[1688311978641,10.45396,1913.2,1912.7,15.75801184]
[1688311978934,5.22698,1913.2,1912.7,15.75801184]
[1688311979138,10.46990813,1913.3,1912.7,21.21801184]
[1688311980803,11.77821894,1913.3,1912.7,18.60391184]
[1688311981352,14.39149894,1913.3,1912.7,18.60391184]
[1688311982036,13.08318813,1913.3,1912.7,13.37570184]
[1688311982326,13.06667,1913.3,1912.7,18.60391184]
[1688311982524,2.61308,1913.5,1912.9,5.46]
[1688311982725,5.22642,1913.4,1913.1,10.45405]
[1688311982940,10.45285,1913.4,1913.1,13.14157184]
[1688311983115,5.22642,1913.4,1913.1,13.14157184]
[1688311984706,5.22559,1913.7,1913.2,2.68752184]
[1688311984907,10.4512,1913.7,1913.3,5.22632]
[1688311985747,13.06393,1913.7,1913.3,5.22632]
[1688311986318,14.09707047,1913.7,1913.2,13.14090184]
[1688311986519,14.09707047,1913.7,1913.2,5.22669]
[1688311987246,14.09707047,1913.7,1913.2,10.45353]
[1688311988057,14.09707047,1913.7,1913.2,5.22669]
[1688311988058,0.01651813,1913.6,1913.2,5.22669]
[1688311988233,5.22608,1913.5,1912.7,3.660172]
[1688311988416,5.22608,1913.5,1912.7,13.14367184]
[1688311988417,0.54388782,1913.4,1912.7,13.14367184]
[1688311988620,13.06717,1913.2,1912.7,13.14367184]
[1688311989855,13.06717,1913.2,1912.7,15.75777184]
[1688311990228,10.45374,1913.2,1912.7,15.75777184]
[1688311990559,13.06716,1913.2,1912.7,13.14367184]
[1688311991955,13.06716,1913.2,1912.7,13.14393184]
[1688311992337,13.06716,1913.2,1912.7,7.91572184]
[1688311992532,13.06716,1913.2,1912.7,13.14393184]
[1688311992734,5.24323813,1913.3,1912.8,2.68752184]
[1688311993055,5.24319813,1913.3,1912.9,10.45518]
[1688311993362,5.24319813,1913.3,1912.9,13.14270184]
[1688311993571,10.46976813,1913.3,1912.9,13.14270184]
[1688311994248,14.39133994,1913.3,1912.5,5.61432]
[1688311994451,14.39133994,1913.3,1912.6,13.45696]
[1688311994656,14.39133994,1913.3,1912.6,16.0712]
[1688311995179,5.24308813,1913.3,1912.8,10.45542]
[1688311995378,5.24308813,1913.3,1913.0,5.22733]
[1688311995678,10.46965813,1913.3,1913.0,5.22733]
[1688311996037,5.24308813,1913.3,1913.0,5.22733]
[1688311996436,2.61292,1913.6,1913.0,15.75593184]
[1688311996437,5.22614,1913.5,1913.0,15.75593184]
[1688311996658,10.45236,1913.5,1913.0,15.75593184]
[1688311996861,5.22614,1913.5,1913.1,2.68752184]
[1688311997076,5.5861,1914.0,1913.2,10.45358]
[1688311997378,10.45068,1913.8,1913.5,5.22599]
[1688311997980,5.22451,1914.1,1913.5,15.75254184]
[1688311998291,5.22466,1914.0,1913.5,15.75254184]
[1688311998466,5.22451,1914.1,1913.6,2.68752184]
[1688311998663,5.22451,1914.1,1913.7,10.45084]
[1688311998664,5.22473,1914.0,1913.7,10.45084]
[1688311998863,5.22473,1914.0,1913.7,13.13836184]
[1688311998864,10.44946,1914.0,1913.7,13.13836184]
[1688311999243,5.22473,1914.0,1913.7,13.13836184]
[1688312000140,5.22473,1914.0,1913.7,15.75109184]
[1688312000713,2.61187,1914.4,1913.8,8.14752184]
[1688312000835,5.22361,1914.4,1914.0,13.06115]
[1688312001054,5.22361,1914.4,1914.1,2.68752184]
[1688312001295,5.22341,1914.5,1914.2,13.06018]
[1688312001461,5.22341,1914.5,1914.3,0.00897831]
[1688312001663,0.42152505,1914.7,1914.4,2.68752184]
[1688312001899,2.61126,1914.8,1914.4,7.91103184]
[1688312002054,5.22303,1914.6,1914.4,2.68752184]
[1688312002501,10.44606,1914.6,1914.3,5.23128516]
[1688312002671,5.22279,1914.7,1914.4,2.68752184]
[1688312002872,5.22279,1914.7,1914.5,5.22329]
[1688312003082,10.44463,1914.9,1914.5,13.13410184]
[1688312003283,5.22223,1914.9,1914.5,15.74574184]
[1688312003487,5.22232,1914.9,1914.5,15.74574184]
[1688312004253,10.44452,1914.9,1914.5,15.74574184]
[1688312004602,10.44452,1914.9,1914.5,13.13410184]
[1688312004844,5.2222,1914.9,1914.5,15.74574184]
[1688312005205,0.01651813,1915.1,1914.7,7.83391]
[1688312005536,0.01651813,1915.1,1914.9,10.4444]
[1688312006893,0.01651813,1915.1,1914.9,15.74302184]
[1688312007098,5.2689182,1915.5,1914.9,15.74302184]
[1688312007294,0.06482633,1915.5,1915.1,10.44304]
[1688312007502,5.28544633,1915.5,1915.1,10.44304]
[1688312007810,10.50606633,1915.5,1915.1,10.44304]
[1688312008012,10.50606633,1915.5,1915.0,5.29841184]
[1688312008013,14.19331441,1915.5,1914.8,5.22236]
[1688312008347,14.19331441,1915.5,1914.8,7.90983184]
[1688312008567,14.19331441,1915.5,1914.8,13.13230184]
[1688312011111,14.19331441,1915.5,1914.8,7.90983184]
[1688312011423,14.19331441,1915.5,1914.8,13.13230184]
[1688312011622,1.41933144,1915.4,1914.8,13.13230184]
[1688312011865,13.05329,1915.3,1914.8,13.13230184]
[1688312012163,5.22094,1915.4,1915.0,10.44386]
[1688312012361,10.44202,1915.4,1915.0,10.44386]
[1688312014058,13.05244,1915.4,1915.0,10.44386]
[1688312014223,14.36251482,1915.4,1915.0,5.22193]
[1688312014420,14.36251482,1915.4,1914.9,2.68752184]
[1688312014628,0.02337933,1915.3,1914.9,2.68752184]
[1688312014816,13.05358,1915.2,1914.4,1.045262]
[1688312015027,13.05358,1915.2,1914.5,2.68752184]
[1688312015028,1.32873733,1915.1,1914.5,2.68752184]
[1688312015227,15.66644,1915.0,1914.5,2.68752184]
[1688312015454,0.02337933,1914.9,1914.2,5.22398]
[1688312015653,0.02337933,1914.9,1914.3,2.68752184]
[1688312015654,13.05692,1914.7,1914.3,2.68752184]
[1688312015929,13.05692,1914.7,1914.1,1.6945]
[1688312015930,13.05854,1914.5,1914.1,10.44851]
[1688312016139,0.02337933,1914.4,1914.3,5.22382]
[1688312016359,0.02337933,1914.4,1914.3,2.68752184]
[1688312016546,5.24693933,1914.4,1914.3,7.91136184]
[1688312016930,0.02337933,1914.4,1914.3,7.91136184]
[1688312017135,5.22343,1914.5,1914.3,2.68752184]
[1688312017372,5.22994092,1914.4,1914.2,5.22394]
[1688312017687,13.08179905,1914.4,1913.9,13.06209]
[1688312017848,10.47001905,1914.4,1914.1,5.22433]
[1688312018046,5.24645905,1914.4,1914.1,13.13623184]
[1688312018296,10.47001905,1914.4,1913.9,5.22481]
[1688312018454,0.02127982,1914.3,1914.0,2.68752184]
[1688312018635,5.22411,1914.2,1914.0,13.13656184]
[1688312018851,5.24523982,1914.3,1914.0,13.13656184]
[1688312019246,0.02127982,1914.3,1914.0,15.74889184]
[1688312019669,0.02127982,1914.5,1914.1,12.72352184]
[1688312019986,5.22207,1915.0,1914.6,10.4457]
[1688312020190,10.44368,1915.1,1914.7,2.68752184]
[1688312020355,10.44368,1915.1,1914.7,7.91021184]
[1688312021283,0.01651813,1915.2,1914.7,15.74433184]
[1688312021444,5.22095,1915.4,1914.9,13.05497]
[1688312021640,10.44189,1915.4,1915.0,2.68752184]
[1688312021856,10.44189,1915.4,1915.1,5.2216]
[1688312022180,10.44189,1915.4,1915.0,7.90929184]
[1688312022181,10.44189,1915.4,1915.0,10.44353]
[1688312022356,10.44189,1915.4,1915.0,10.44356]
[1688312022844,0.01651813,1915.3,1914.5,5.22306]
[1688312023059,15.6647,1915.2,1914.6,10.44577]
[1688312023575,15.6647,1915.2,1914.3,8.22358]
[1688312023576,13.05513,1915.0,1914.3,8.22358]
[1688312023776,0.01475427,1914.9,1914.4,7.91100184]
[1688312024092,13.05648,1914.8,1914.4,7.91100184]
[1688312024449,13.05648,1914.8,1914.4,13.13456184]
[1688312025284,10.44522,1914.8,1914.4,13.13456184]
[1688312025442,1.096,1915.3,1914.4,13.13456184]
[1688312025443,3.2081082,1915.5,1914.4,15.74634184]
[1688312025645,5.22144,1915.2,1914.4,17.11008155]
[1688312025876,4.7275082,1915.5,1914.6,5.46]
[1688312025877,0.0483082,1915.5,1914.6,5.46]
[1688312026094,0.0483082,1915.5,1914.8,13.0557]
[1688312026095,5.2690382,1915.5,1914.8,13.0557]
[1688312026253,10.4895982,1915.5,1914.9,2.68752184]
[1688312026454,5.2688682,1915.5,1915.0,10.44344]
[1688312026794,13.0997082,1915.5,1915.0,10.44344]
[1688312027009,13.88761402,1915.5,1915.0,10.44344]
[1688312028589,2.68752184,1915.4,1914.6,5.22292]
[1688312028792,13.05372,1915.2,1914.6,10.44594]
[1688312029159,0.03989746,1915.1,1914.6,10.44594]
[1688312029382,13.05511,1915.0,1914.6,10.44594]
[1688312029583,0.02337933,1914.9,1914.6,13.13346184]
[1688312029989,0.02337933,1914.9,1914.6,15.74497184]
[1688312030194,0.02337933,1914.9,1914.7,11.14752184]
[1688312030492,5.22088,1915.4,1914.8,16.7574]
[1688312030653,5.2689682,1915.5,1915.0,13.05454]
[1688312030654,0.06482633,1915.5,1915.0,13.05454]
[1688312030856,0.06482633,1915.5,1915.1,2.68752184]
[1688312031062,0.06482633,1915.5,1915.2,13.05332]
[1688312031267,0.06482633,1915.5,1915.2,15.74084184]
[1688312031682,0.06482633,1915.5,1915.4,10.44168]
[1688312031895,0.0483082,1915.5,1915.4,10.44168]
[1688312032266,0.0483082,1915.5,1915.4,13.12920184]
[1688312032681,0.0483082,1915.5,1915.4,15.73962184]
[1688312034580,0.06482633,1915.5,1915.2,5.22133]
[1688312034897,0.06482633,1915.5,1915.3,5.22098]
[1688312035393,11.55671296,1915.5,1915.0,5.22182]
[1688312035566,0.01343973,1915.4,1915.1,2.68752184]
[1688312035767,5.22111,1915.3,1915.1,2.68752184]
[1688312035970,5.22111,1915.3,1914.9,5.22206]
[1688312035971,0.01652294,1915.2,1914.9,5.22206]
[1688312036168,0.01652294,1915.2,1915.0,2.63752184]
[1688312036404,0.06482633,1915.5,1915.0,15.69230184]
[1688312036607,0.06482633,1915.5,1915.0,21.15230184]
[1688312036981,0.06482633,1915.5,1915.2,5.46]
[1688312037181,0.06482633,1915.5,1915.3,15.74029184]
[1688312037868,0.06482633,1915.5,1915.3,13.12974184]
[1688312038067,0.06482633,1915.5,1915.3,15.74029184]
[1688312039193,0.06482633,1915.5,1915.3,13.12974184]
[1688312039392,10.50600633,1915.5,1915.3,5.22111]
[1688312039687,10.50600633,1915.5,1915.3,10.44222]
[1688312039688,5.28541633,1915.5,1915.3,10.44222]
[1688312040122,0.06482633,1915.5,1915.4,2.68752184]
[1688312040322,0.06482633,1915.5,1915.4,13.12920184]
[1688312040323,0.0483082,1915.5,1915.4,13.12920184]
[1688312040717,0.0483082,1915.5,1915.4,5.22084]
[1688312040919,0.0483082,1915.5,1915.4,10.51878184]
[1688312041100,0.0483082,1915.5,1915.4,15.73962184]
[1688312041822,0.0483082,1915.5,1915.4,13.0521]
[1688312042037,5.2688682,1915.5,1915.3,10.44186]
[1688312042196,0.0483082,1915.5,1915.4,5.22084]